[Event "Live Chess"]
[Site "Chess.com"]
[Date "2023.05.21"]
[Round "-"]
[White "JohanKjeldahl"]
[Black "chessfiction"]
[Result "0-1"]
[WhiteElo "1879"]
[BlackElo "2298"]
[TimeControl "300"]
[EndTime "8:35:19 PDT"]
[Termination "chessfiction won by resignation"]

1. c4 {[%clk 0:04:57.6]} 1... d5 {[%clk 0:04:58]} 2. cxd5 {[%clk 0:04:55.9]}
2... c6 {[%clk 0:04:57.2]} 3. dxc6 {[%clk 0:04:53]} 3... e5 {[%clk 0:04:56.2]}
4. cxb7 {[%clk 0:04:51]} 4... Bxb7 {[%clk 0:04:56.1]} 5. Nc3 {[%clk 0:04:49.5]}
5... Bc5 {[%clk 0:04:55]} 6. e3 {[%clk 0:04:47.5]} 6... Nf6 {[%clk 0:04:53.8]}
7. Nf3 {[%clk 0:04:40.1]} 7... Nc6 {[%clk 0:04:49.2]} 8. a3 {[%clk 0:04:37.2]}
8... O-O {[%clk 0:04:48.1]} 9. b4 {[%clk 0:04:35]} 9... Bb6 {[%clk 0:04:46.6]}
10. Bb2 {[%clk 0:04:33.6]} 10... e4 {[%clk 0:04:45.8]} 11. Ng5 {[%clk
0:04:30.3]} 11... Ne5 {[%clk 0:04:45.2]} 12. h4 {[%clk 0:04:26.3]} 12... h6
{[%clk 0:04:41.7]} 13. Ngxe4 {[%clk 0:04:10.4]} 13... Nxe4 {[%clk 0:04:39.1]}
14. Nxe4 {[%clk 0:04:09.5]} 14... Bxe4 {[%clk 0:04:37.9]} 15. Bxe5 {[%clk
0:04:08.3]} 15... Qd5 {[%clk 0:04:35.4]} 16. d4 {[%clk 0:04:05]} 16... Rac8
{[%clk 0:04:32.1]} 17. f3 {[%clk 0:03:55.3]} 17... Bg6 {[%clk 0:04:28.4]} 18.
Bd3 {[%clk 0:03:50.5]} 18... Rc3 {[%clk 0:04:16.5]} 19. Bxg6 {[%clk 0:03:47.4]}
19... Rxe3+ {[%clk 0:04:14.4]} 20. Kf2 {[%clk 0:03:42.7]} 20... Rxe5 {[%clk
0:04:12.3]} 21. Be4 {[%clk 0:03:34.2]} 21... Qxd4+ {[%clk 0:04:01.2]} 22. Qxd4
{[%clk 0:03:30.5]} 22... Bxd4+ {[%clk 0:03:58.6]} 23. Kg3 {[%clk 0:03:29.3]}
23... Bxa1 {[%clk 0:03:58.5]} 24. Rxa1 {[%clk 0:03:27.3]} 24... f5 {[%clk
0:03:57.9]} 25. Bd3 {[%clk 0:03:19.4]} 25... Rd8 {[%clk 0:03:56.5]} 26. Bc4+
{[%clk 0:03:16.8]} 26... Kf8 {[%clk 0:03:50.2]} 27. h5 {[%clk 0:03:10.9]} 27...
Rd4 {[%clk 0:03:34.3]} 28. Rc1 {[%clk 0:03:01.8]} 28... f4+ {[%clk 0:03:32.8]}
29. Kh4 {[%clk 0:02:53]} 29... Rg5 {[%clk 0:03:22.3]} 30. Bf1 {[%clk 0:02:50.8]}
30... Rdd5 {[%clk 0:03:19.2]} 31. g4 {[%clk 0:02:40.1]} 31... fxg3 {[%clk
0:03:17.3]} 0-1

[Event "Live Chess"]
[Site "Chess.com"]
[Date "2023.05.21"]
[Round "-"]
[White "SupremeTactician"]
[Black "manthanit"]
[Result "1-0"]
[WhiteElo "2175"]
[BlackElo "1105"]
[TimeControl "300"]
[EndTime "8:35:21 PDT"]
[Termination "SupremeTactician won by resignation"]

1. e4 {[%clk 0:04:59.4]} 1... e6 {[%clk 0:04:59]} 2. d4 {[%clk 0:04:58.5]} 2...
d5 {[%clk 0:04:58.5]} 3. Nd2 {[%clk 0:04:58.4]} 3... dxe4 {[%clk 0:04:57]} 4.
Nxe4 {[%clk 0:04:58.3]} 4... Nf6 {[%clk 0:04:52.5]} 5. Nxf6+ {[%clk 0:04:57.8]}
5... Qxf6 {[%clk 0:04:51.6]} 6. c3 {[%clk 0:04:57.7]} 6... c5 {[%clk 0:04:43.2]}
7. Nf3 {[%clk 0:04:56.3]} 7... cxd4 {[%clk 0:04:42.1]} 8. Qxd4 {[%clk
0:04:56.2]} 8... Be7 {[%clk 0:04:38.7]} 9. Qxf6 {[%clk 0:04:54.7]} 9... Bxf6
{[%clk 0:04:37.3]} 10. Be3 {[%clk 0:04:54.6]} 10... O-O {[%clk 0:04:36]} 11.
O-O-O {[%clk 0:04:52.5]} 11... Bd7 {[%clk 0:04:31.2]} 12. h4 {[%clk 0:04:51.4]}
12... Bc6 {[%clk 0:04:30.3]} 13. Bd3 {[%clk 0:04:48.6]} 13... Nd7 {[%clk
0:04:27]} 14. h5 {[%clk 0:04:45.8]} 14... h6 {[%clk 0:04:24.5]} 15. g4 {[%clk
0:04:44.3]} 15... Rad8 {[%clk 0:04:22.5]} 16. Rh3 {[%clk 0:04:43.2]} 16... Ne5
{[%clk 0:04:21.3]} 17. Nxe5 {[%clk 0:04:42.3]} 17... Bxe5 {[%clk 0:04:19.9]} 18.
f4 {[%clk 0:04:41.9]} 18... Bf6 {[%clk 0:04:17]} 19. g5 {[%clk 0:04:41.6]} 19...
Be7 {[%clk 0:04:15.7]} 20. gxh6 {[%clk 0:04:39.7]} 20... gxh6 {[%clk 0:04:14.9]}
21. f5 {[%clk 0:04:39.1]} 21... exf5 {[%clk 0:04:11.7]} 22. Bxh6 {[%clk
0:04:36]} 22... Be4 {[%clk 0:04:03.6]} 23. Bxf8 {[%clk 0:04:31.6]} 23... Kxf8
{[%clk 0:04:01.6]} 24. Bxe4 {[%clk 0:04:30.6]} 24... Rxd1+ {[%clk 0:04:00.1]}
25. Kxd1 {[%clk 0:04:30.1]} 25... fxe4 {[%clk 0:03:59.7]} 26. h6 {[%clk
0:04:30]} 26... Bf6 {[%clk 0:03:58.1]} 27. Ke2 {[%clk 0:04:27.2]} 27... Kg8
{[%clk 0:03:57.6]} 28. Ke3 {[%clk 0:04:26.1]} 28... Kh7 {[%clk 0:03:57.1]} 29.
Kxe4 {[%clk 0:04:25.6]} 29... Bg5 {[%clk 0:03:56.4]} 30. Kf5 {[%clk 0:04:24.9]}
30... Bxh6 {[%clk 0:03:55.8]} 31. Rxh6+ {[%clk 0:04:22.2]} 31... Kxh6 {[%clk
0:03:55]} 32. Kf6 {[%clk 0:04:22.1]} 32... Kh5 {[%clk 0:03:53.2]} 33. Kxf7
{[%clk 0:04:22]} 33... Kg4 {[%clk 0:03:52.4]} 34. Ke6 {[%clk 0:04:21.9]} 34...
Kf4 {[%clk 0:03:51.5]} 35. Kd6 {[%clk 0:04:21.8]} 35... Ke3 {[%clk 0:03:51]} 36.
Kc7 {[%clk 0:04:21.6]} 36... Kd3 {[%clk 0:03:50.4]} 37. Kxb7 {[%clk 0:04:21.4]}
37... Kc2 {[%clk 0:03:50]} 38. c4 {[%clk 0:04:21.1]} 38... Kxb2 {[%clk
0:03:49.5]} 39. c5 {[%clk 0:04:21]} 39... Kxa2 {[%clk 0:03:49.2]} 40. c6 {[%clk
0:04:20.9]} 40... Kb3 {[%clk 0:03:48.9]} 41. Kxa7 {[%clk 0:04:20.3]} 1-0

[Event "Live Chess"]
[Site "Chess.com"]
[Date "2023.05.21"]
[Round "-"]
[White "JanMur7"]
[Black "bedsdrout"]
[Result "0-1"]
[WhiteElo "1959"]
[BlackElo "1876"]
[TimeControl "300"]
[EndTime "8:35:27 PDT"]
[Termination "bedsdrout won by checkmate"]

1. e4 {[%clk 0:04:58.8]} 1... c5 {[%clk 0:04:58.6]} 2. Nf3 {[%clk 0:04:57.8]}
2... Nc6 {[%clk 0:04:56.6]} 3. c3 {[%clk 0:04:57.1]} 3... Nf6 {[%clk 0:04:54.9]}
4. e5 {[%clk 0:04:55.8]} 4... Nd5 {[%clk 0:04:52.7]} 5. d4 {[%clk 0:04:55]} 5...
cxd4 {[%clk 0:04:51.5]} 6. cxd4 {[%clk 0:04:54.9]} 6... d6 {[%clk 0:04:49.9]} 7.
exd6 {[%clk 0:04:52.7]} 7... Bf5 {[%clk 0:04:47]} 8. Nc3 {[%clk 0:04:46.5]} 8...
Ndb4 {[%clk 0:04:44.6]} 9. d5 {[%clk 0:04:16.9]} 9... Nc2+ {[%clk 0:04:31.6]}
10. Ke2 {[%clk 0:04:15.6]} 10... Qxd6 {[%clk 0:04:27.7]} 11. dxc6 {[%clk
0:04:13.2]} 11... Qe6+ {[%clk 0:04:23.6]} 12. Be3 {[%clk 0:04:11.3]} 12... Rd8
{[%clk 0:04:19.7]} 13. cxb7 {[%clk 0:04:03.7]} 13... Qc4+ {[%clk 0:04:16.1]} 14.
Qd3 {[%clk 0:03:55.8]} 14... Qxd3# {[%clk 0:04:11.9]} 0-1

[Event "Live Chess"]
[Site "Chess.com"]
[Date "2023.05.21"]
[Round "-"]
[White "McSlash1"]
[Black "tpm07"]
[Result "0-1"]
[WhiteElo "1964"]
[BlackElo "1959"]
[TimeControl "300"]
[EndTime "8:35:30 PDT"]
[Termination "tpm07 won by resignation"]

1. e4 {[%clk 0:04:59.1]} 1... e5 {[%clk 0:04:57.3]} 2. Nf3 {[%clk 0:04:57.8]}
2... Nc6 {[%clk 0:04:56.7]} 3. Bc4 {[%clk 0:04:57.4]} 3... Nf6 {[%clk
0:04:55.2]} 4. O-O {[%clk 0:04:56.8]} 4... Nxe4 {[%clk 0:04:53.1]} 5. Re1 {[%clk
0:04:56.1]} 5... d5 {[%clk 0:04:52.1]} 6. Bb5 {[%clk 0:04:54.6]} 6... Bc5 {[%clk
0:04:49.3]} 7. d4 {[%clk 0:04:50.7]} 7... exd4 {[%clk 0:04:47.8]} 8. Nxd4 {[%clk
0:04:44.8]} 8... O-O {[%clk 0:04:46.7]} 9. Bxc6 {[%clk 0:04:43.2]} 9... bxc6
{[%clk 0:04:44.6]} 10. c3 {[%clk 0:04:41.8]} 10... Qh4 {[%clk 0:04:40.6]} 11. g3
{[%clk 0:04:38.7]} 11... Qh3 {[%clk 0:04:37.8]} 12. Qf3 {[%clk 0:04:27.1]} 12...
Bg4 {[%clk 0:04:29.5]} 13. Qg2 {[%clk 0:04:25.7]} 13... Qh5 {[%clk 0:04:28.6]}
14. Be3 {[%clk 0:04:21.4]} 14... Bxd4 {[%clk 0:04:24.6]} 15. Bxd4 {[%clk
0:04:18.1]} 15... Ng5 {[%clk 0:04:16.8]} 16. Nd2 {[%clk 0:04:06.5]} 16... Bf3
{[%clk 0:04:03.7]} 17. Nxf3 {[%clk 0:03:56]} 17... Nxf3+ {[%clk 0:04:00]} 18.
Kh1 {[%clk 0:03:55.6]} 18... Nxe1 {[%clk 0:03:57.9]} 19. Rxe1 {[%clk 0:03:55.5]}
19... Rfe8 {[%clk 0:03:53.2]} 20. Qf1 {[%clk 0:03:47.2]} 20... Qf3+ {[%clk
0:03:47.2]} 21. Kg1 {[%clk 0:03:44.7]} 21... Re6 {[%clk 0:03:38.7]} 22. Rxe6
{[%clk 0:03:38.1]} 22... fxe6 {[%clk 0:03:37.4]} 23. Qh3 {[%clk 0:03:30.3]}
23... Qf5 {[%clk 0:03:27.4]} 24. Qh4 {[%clk 0:03:23.1]} 24... e5 {[%clk
0:02:55.1]} 25. Be3 {[%clk 0:03:17.2]} 25... Re8 {[%clk 0:02:39.4]} 26. Bxa7
{[%clk 0:03:05.9]} 26... Qb1+ {[%clk 0:02:37.7]} 27. Kg2 {[%clk 0:03:04.7]}
27... Qxa2 {[%clk 0:02:35.7]} 28. Bc5 {[%clk 0:03:03.6]} 28... Qxb2 {[%clk
0:02:32.7]} 29. Qh5 {[%clk 0:02:56.4]} 29... Qb8 {[%clk 0:02:24.1]} 30. Qf5
{[%clk 0:02:51]} 30... Qc8 {[%clk 0:02:16.7]} 31. Qg5 {[%clk 0:02:46.2]} 31...
Qe6 {[%clk 0:02:11.5]} 32. h4 {[%clk 0:02:40.9]} 32... e4 {[%clk 0:01:54.7]} 33.
Bd4 {[%clk 0:02:39.6]} 33... Re7 {[%clk 0:01:48.7]} 34. h5 {[%clk 0:02:37.9]}
34... e3 {[%clk 0:01:44]} 35. fxe3 {[%clk 0:02:35.4]} 35... Qe4+ {[%clk
0:01:39.3]} 36. Kh3 {[%clk 0:02:34.6]} 36... Qh1+ {[%clk 0:01:29.6]} 37. Kg4
{[%clk 0:02:31.4]} 37... Re4+ {[%clk 0:01:23.8]} 38. Kf5 {[%clk 0:02:27.6]}
38... Qf3+ {[%clk 0:01:22]} 0-1

[Event "Live Chess"]
[Site "Chess.com"]
[Date "2023.05.21"]
[Round "-"]
[White "Misha145Chess"]
[Black "GMHarry-youtube"]
[Result "0-1"]
[WhiteElo "621"]
[BlackElo "1994"]
[TimeControl "300"]
[EndTime "8:35:37 PDT"]
[Termination "GMHarry-youtube won by checkmate"]

1. d4 {[%clk 0:04:55.7]} 1... Nf6 {[%clk 0:04:58.3]} 2. Nc3 {[%clk 0:04:52]}
2... d5 {[%clk 0:04:56.5]} 3. f3 {[%clk 0:04:50]} 3... c5 {[%clk 0:04:55]} 4.
dxc5 {[%clk 0:04:45.6]} 4... e5 {[%clk 0:04:52.7]} 5. Nb5 {[%clk 0:04:35]} 5...
Bxc5 {[%clk 0:04:50.6]} 6. e3 {[%clk 0:04:21.8]} 6... Qb6 {[%clk 0:04:47]} 7. f4
{[%clk 0:04:18.4]} 7... exf4 {[%clk 0:04:43.4]} 8. exf4 {[%clk 0:04:16.9]} 8...
Bg4 {[%clk 0:04:40.8]} 9. Be2 {[%clk 0:04:05.1]} 9... Bf2+ {[%clk 0:04:36.6]}
10. Kf1 {[%clk 0:03:58.5]} 10... Bh4 {[%clk 0:04:34.8]} 11. Qd3 {[%clk
0:03:32.2]} 11... Qf2# {[%clk 0:04:32.8]} 0-1

[Event "Live Chess"]
[Site "Chess.com"]
[Date "2023.05.21"]
[Round "-"]
[White "AyannaTang"]
[Black "Tema1107"]
[Result "0-1"]
[WhiteElo "230"]
[BlackElo "1958"]
[TimeControl "300"]
[EndTime "8:35:46 PDT"]
[Termination "Tema1107 won by checkmate"]

1. e4 {[%clk 0:04:59]} 1... c5 {[%clk 0:04:59.1]} 2. d4 {[%clk 0:04:54.9]} 2...
cxd4 {[%clk 0:04:58]} 3. Bc4 {[%clk 0:04:51.6]} 3... e6 {[%clk 0:04:56.4]} 4.
Nf3 {[%clk 0:04:46.7]} 4... Nc6 {[%clk 0:04:53.8]} 5. c3 {[%clk 0:04:43.2]} 5...
d3 {[%clk 0:04:49.7]} 6. Na3 {[%clk 0:04:40.9]} 6... Bxa3 {[%clk 0:04:46.6]} 7.
bxa3 {[%clk 0:04:39.1]} 7... Nge7 {[%clk 0:04:46]} 8. Bb5 {[%clk 0:04:36.9]}
8... O-O {[%clk 0:04:42.6]} 9. Bxc6 {[%clk 0:04:35.6]} 9... dxc6 {[%clk
0:04:38.9]} 10. O-O {[%clk 0:04:30.4]} 10... b6 {[%clk 0:04:37]} 11. Qxd3 {[%clk
0:04:27.4]} 11... Qxd3 {[%clk 0:04:35]} 12. Nd2 {[%clk 0:04:21.5]} 12... Ba6
{[%clk 0:04:29.7]} 13. Bb2 {[%clk 0:04:08.3]} 13... Qxd2 {[%clk 0:04:21.1]} 14.
h4 {[%clk 0:03:53.4]} 14... Qxb2 {[%clk 0:04:09.5]} 15. Rfe1 {[%clk 0:03:37.8]}
15... Rad8 {[%clk 0:04:07.2]} 16. Reb1 {[%clk 0:03:31.6]} 16... Qxc3 {[%clk
0:03:50.5]} 17. Rc1 {[%clk 0:03:25.7]} 17... Qe5 {[%clk 0:03:48.1]} 18. Re1
{[%clk 0:03:17.2]} 18... Rd2 {[%clk 0:03:44.5]} 19. Rad1 {[%clk 0:03:11]} 19...
Rfd8 {[%clk 0:03:39.5]} 20. Rxd2 {[%clk 0:03:07.8]} 20... Rxd2 {[%clk
0:03:39.4]} 21. Rf1 {[%clk 0:03:05.1]} 21... Bxf1 {[%clk 0:03:36.8]} 22. Kxf1
{[%clk 0:03:02.8]} 22... Qa1# {[%clk 0:03:36.4]} 0-1

[Event "Live Chess"]
[Site "Chess.com"]
[Date "2023.05.21"]
[Round "-"]
[White "NatashaRegan"]
[Black "wot-not"]
[Result "0-1"]
[WhiteElo "1699"]
[BlackElo "1531"]
[TimeControl "300"]
[EndTime "8:36:09 PDT"]
[Termination "wot-not won by checkmate"]

1. c4 {[%clk 0:04:53]} 1... Nf6 {[%clk 0:04:49.2]} 2. d4 {[%clk 0:04:50.9]} 2...
g6 {[%clk 0:04:46.5]} 3. Nc3 {[%clk 0:04:45.6]} 3... d5 {[%clk 0:04:45.7]} 4.
cxd5 {[%clk 0:04:42.7]} 4... Nxd5 {[%clk 0:04:44.3]} 5. e4 {[%clk 0:04:41.9]}
5... Nxc3 {[%clk 0:04:43.6]} 6. bxc3 {[%clk 0:04:41]} 6... Bg7 {[%clk
0:04:43.3]} 7. Bc4 {[%clk 0:04:34.7]} 7... c5 {[%clk 0:04:41.1]} 8. Ne2 {[%clk
0:04:30.5]} 8... O-O {[%clk 0:04:36.7]} 9. O-O {[%clk 0:04:29]} 9... Nc6 {[%clk
0:04:33.6]} 10. e5 {[%clk 0:04:21.6]} 10... Na5 {[%clk 0:04:26.3]} 11. Bd3
{[%clk 0:04:11.7]} 11... c4 {[%clk 0:04:25.1]} 12. Be4 {[%clk 0:04:07.8]} 12...
Bd7 {[%clk 0:04:18.9]} 13. Nf4 {[%clk 0:04:00.1]} 13... Bc6 {[%clk 0:04:14.5]}
14. Bc2 {[%clk 0:03:55.6]} 14... e6 {[%clk 0:04:08]} 15. Ba3 {[%clk 0:03:45.6]}
15... Re8 {[%clk 0:04:04.7]} 16. Bd6 {[%clk 0:03:39.5]} 16... b5 {[%clk
0:03:57.6]} 17. Qg4 {[%clk 0:03:34.4]} 17... Nb7 {[%clk 0:03:53.1]} 18. Ba3
{[%clk 0:03:27.5]} 18... Bd5 {[%clk 0:03:11.8]} 19. h4 {[%clk 0:03:24.3]} 19...
a5 {[%clk 0:02:55.4]} 20. h5 {[%clk 0:03:20.7]} 20... Bf8 {[%clk 0:02:40.5]} 21.
Bxf8 {[%clk 0:03:13.4]} 21... Kxf8 {[%clk 0:02:38.7]} 22. hxg6 {[%clk
0:03:05.2]} 22... hxg6 {[%clk 0:02:37]} 23. Bxg6 {[%clk 0:03:00.6]} 23... Ke7
{[%clk 0:02:32.4]} 24. Qg5+ {[%clk 0:02:55.6]} 24... Kd7 {[%clk 0:02:31.2]} 25.
Qxd8+ {[%clk 0:02:50.5]} 25... Raxd8 {[%clk 0:02:28.5]} 26. Bxf7 {[%clk
0:02:48.9]} 26... Rf8 {[%clk 0:02:27.8]} 27. Nxd5 {[%clk 0:02:46.5]} 27... Rxf7
{[%clk 0:02:22.3]} 28. Nf6+ {[%clk 0:02:41.2]} 28... Kc6 {[%clk 0:02:18.1]} 29.
a4 {[%clk 0:02:36.8]} 29... b4 {[%clk 0:02:16.2]} 30. cxb4 {[%clk 0:02:34.1]}
30... axb4 {[%clk 0:02:15.6]} 31. Rfc1 {[%clk 0:02:28.1]} 31... c3 {[%clk
0:02:13.9]} 32. Rab1 {[%clk 0:02:21.2]} 32... Rxd4 {[%clk 0:02:10.7]} 33. Rb3
{[%clk 0:02:11.1]} 33... Nc5 {[%clk 0:02:02.8]} 34. Rbb1 {[%clk 0:02:03.9]}
34... Nxa4 {[%clk 0:01:56.7]} 35. f3 {[%clk 0:02:02.6]} 35... Rb7 {[%clk
0:01:45]} 36. Kf2 {[%clk 0:01:59.5]} 36... Rd2+ {[%clk 0:01:43.4]} 37. Ke3
{[%clk 0:01:54]} 37... Rb5 {[%clk 0:01:42]} 38. f4 {[%clk 0:01:49.1]} 38... Rxg2
{[%clk 0:01:37.9]} 39. Rd1 {[%clk 0:01:43.9]} 39... Rg3+ {[%clk 0:01:34.3]} 40.
Kf2 {[%clk 0:01:39.9]} 40... Rh3 {[%clk 0:01:25]} 41. Rd6+ {[%clk 0:01:37.4]}
41... Kc5 {[%clk 0:01:22.5]} 42. Ne4+ {[%clk 0:01:34.8]} 42... Kc4 {[%clk
0:01:20.5]} 43. Rc6+ {[%clk 0:01:26.8]} 43... Kd3 {[%clk 0:01:18.2]} 44. Nd6
{[%clk 0:01:10.2]} 44... Rc5 {[%clk 0:01:05.4]} 45. Ra6 {[%clk 0:00:43.9]} 45...
Kc2 {[%clk 0:00:52]} 46. Ra1 {[%clk 0:00:37.5]} 46... Nb2 {[%clk 0:00:47.1]} 47.
Ne4 {[%clk 0:00:28]} 47... Nd3+ {[%clk 0:00:46.3]} 48. Kg2 {[%clk 0:00:24.4]}
48... Nxf4+ {[%clk 0:00:41.6]} 49. Kg1 {[%clk 0:00:20.3]} 49... Rc4 {[%clk
0:00:36.1]} 50. Nd6 {[%clk 0:00:17.3]} 50... Rd4 {[%clk 0:00:30.1]} 51. R6a2+
{[%clk 0:00:14.9]} 51... Kd3 {[%clk 0:00:26.5]} 52. Nb5 {[%clk 0:00:13.7]} 52...
Re4 {[%clk 0:00:24.6]} 53. Rd1+ {[%clk 0:00:11.5]} 53... Kc4 {[%clk 0:00:23]}
54. Nd6+ {[%clk 0:00:09.8]} 54... Kb3 {[%clk 0:00:20.8]} 55. Raa1 {[%clk
0:00:07.9]} 55... Re2 {[%clk 0:00:17.8]} 56. Nb5 {[%clk 0:00:04.8]} 56... Rg2+
{[%clk 0:00:16.7]} 57. Kf1 {[%clk 0:00:03.1]} 57... Rh1# {[%clk 0:00:16]} 0-1

[Event "Live Chess"]
[Site "Chess.com"]
[Date "2023.05.21"]
[Round "-"]
[White "JoshMcK"]
[Black "martinsmartin63"]
[Result "1-0"]
[WhiteElo "1580"]
[BlackElo "767"]
[TimeControl "300"]
[EndTime "8:36:12 PDT"]
[Termination "JoshMcK won by resignation"]

1. e4 {[%clk 0:04:57.8]} 1... e5 {[%clk 0:04:55.6]} 2. Nf3 {[%clk 0:04:55.9]}
2... Nc6 {[%clk 0:04:52.4]} 3. Bb5 {[%clk 0:04:53.3]} 3... d6 {[%clk 0:04:49.1]}
4. d4 {[%clk 0:04:51]} 4... Bd7 {[%clk 0:04:46.9]} 5. Bxc6 {[%clk 0:04:45.5]}
5... Bxc6 {[%clk 0:04:44.2]} 6. Nc3 {[%clk 0:04:45.2]} 6... Bd7 {[%clk
0:04:38.3]} 7. O-O {[%clk 0:04:41.2]} 7... Be7 {[%clk 0:04:36.6]} 8. d5 {[%clk
0:04:38.7]} 8... Bg4 {[%clk 0:04:32]} 9. h3 {[%clk 0:04:33.1]} 9... Bh5 {[%clk
0:04:26.5]} 10. Qd3 {[%clk 0:04:30.3]} 10... Bg6 {[%clk 0:04:21]} 11. Qb5+
{[%clk 0:04:25.1]} 11... Kf8 {[%clk 0:04:14.3]} 12. Qxb7 {[%clk 0:04:23.1]}
12... Qb8 {[%clk 0:04:07.4]} 13. Qxb8+ {[%clk 0:04:20.5]} 13... Rxb8 {[%clk
0:04:04.7]} 14. Re1 {[%clk 0:04:09.3]} 14... Nf6 {[%clk 0:04:00.8]} 15. b3
{[%clk 0:04:01.3]} 15... Nxe4 {[%clk 0:03:56.9]} 16. Nxe4 {[%clk 0:03:59.7]}
16... Bxe4 {[%clk 0:03:54.5]} 17. Rxe4 {[%clk 0:03:58.2]} 17... c6 {[%clk
0:03:47.1]} 18. dxc6 {[%clk 0:03:56.8]} 18... Rc8 {[%clk 0:03:41]} 19. c4 {[%clk
0:03:47.4]} 19... a5 {[%clk 0:03:35.7]} 20. Bb2 {[%clk 0:03:41.8]} 20... g6
{[%clk 0:03:28.5]} 21. Bc3 {[%clk 0:03:08.2]} 21... Kg7 {[%clk 0:03:22.5]} 22.
Nxe5 {[%clk 0:03:05.8]} 22... dxe5 {[%clk 0:03:19.1]} 23. Bxe5+ {[%clk
0:03:04.4]} 23... Bf6 {[%clk 0:03:13.8]} 24. Bxf6+ {[%clk 0:03:02.5]} 24... Kxf6
{[%clk 0:03:10.2]} 25. Rae1 {[%clk 0:02:47.5]} 25... Rxc6 {[%clk 0:02:47.5]} 26.
Re5 {[%clk 0:02:45.9]} 26... Rd8 {[%clk 0:02:40.4]} 27. Rxa5 {[%clk 0:02:42.4]}
27... Rd2 {[%clk 0:02:35.5]} 28. g3 {[%clk 0:02:31]} 28... Rcd6 {[%clk
0:02:32.4]} 29. a4 {[%clk 0:02:16.9]} 29... Rb2 {[%clk 0:02:26.8]} 30. Rb5
{[%clk 0:02:10.9]} 30... Rdd2 {[%clk 0:02:18.2]} 31. Rf1 {[%clk 0:02:09.7]}
31... Kg7 {[%clk 0:02:09.9]} 32. a5 {[%clk 0:02:04.9]} 32... h5 {[%clk
0:02:07.3]} 33. a6 {[%clk 0:02:02.9]} 33... Ra2 {[%clk 0:02:04.1]} 34. Rb6
{[%clk 0:02:01.4]} 34... Rdc2 {[%clk 0:01:58.7]} 35. b4 {[%clk 0:01:43.3]} 35...
Rab2 {[%clk 0:01:53.8]} 36. b5 {[%clk 0:01:36]} 36... Rxc4 {[%clk 0:01:50.4]}
37. a7 {[%clk 0:01:34.7]} 37... Ra2 {[%clk 0:01:44.3]} 38. Rb7 {[%clk
0:01:31.8]} 38... Rca4 {[%clk 0:01:39.1]} 39. b6 {[%clk 0:01:30.6]} 39... Ra1
{[%clk 0:01:31.8]} 40. Rxa1 {[%clk 0:01:27.5]} 40... Rxa1+ {[%clk 0:01:30.2]}
41. Kg2 {[%clk 0:01:26.8]} 41... Kf6 {[%clk 0:01:19.1]} 42. Rb8 {[%clk
0:01:25.6]} 42... g5 {[%clk 0:01:10.3]} 43. a8=Q {[%clk 0:01:23.3]} 43... Ra7
{[%clk 0:01:06.2]} 44. Qxa7 {[%clk 0:01:21.3]} 1-0

[Event "Live Chess"]
[Site "Chess.com"]
[Date "2023.05.21"]
[Round "-"]
[White "f4nomore"]
[Black "lord_cll"]
[Result "0-1"]
[WhiteElo "1372"]
[BlackElo "1219"]
[TimeControl "300"]
[EndTime "8:36:14 PDT"]
[Termination "lord_cll won on time"]

1. d4 {[%clk 0:04:54.7]} 1... Nf6 {[%clk 0:04:58.8]} 2. Bg5 {[%clk 0:04:52.5]}
2... g6 {[%clk 0:04:54.1]} 3. Bxf6 {[%clk 0:04:51.3]} 3... exf6 {[%clk
0:04:52.7]} 4. Nf3 {[%clk 0:04:50.5]} 4... Bg7 {[%clk 0:04:51.7]} 5. e3 {[%clk
0:04:49.4]} 5... O-O {[%clk 0:04:47.7]} 6. Be2 {[%clk 0:04:48.4]} 6... Nc6
{[%clk 0:04:46.2]} 7. O-O {[%clk 0:04:47]} 7... d5 {[%clk 0:04:44.6]} 8. c4
{[%clk 0:04:43.5]} 8... Be6 {[%clk 0:04:39.4]} 9. c5 {[%clk 0:04:41.3]} 9... Ne7
{[%clk 0:04:06.4]} 10. b4 {[%clk 0:04:34.2]} 10... a5 {[%clk 0:04:01.8]} 11. Qb3
{[%clk 0:04:28.5]} 11... Nc6 {[%clk 0:03:52.9]} 12. b5 {[%clk 0:04:23.3]} 12...
a4 {[%clk 0:03:33.1]} 13. Qb2 {[%clk 0:04:18.1]} 13... Na5 {[%clk 0:03:29.8]}
14. Na3 {[%clk 0:04:09.8]} 14... Nc4 {[%clk 0:03:20]} 15. Nxc4 {[%clk
0:04:01.9]} 15... dxc4 {[%clk 0:03:18.9]} 16. Qc3 {[%clk 0:03:59.7]} 16... Qd5
{[%clk 0:03:04.4]} 17. Rfc1 {[%clk 0:03:53.5]} 17... c6 {[%clk 0:02:41.7]} 18.
bxc6 {[%clk 0:03:37.2]} 18... Qxc6 {[%clk 0:02:37.1]} 19. Bxc4 {[%clk
0:03:30.3]} 19... f5 {[%clk 0:02:31.7]} 20. Be2 {[%clk 0:03:27]} 20... Rac8
{[%clk 0:02:22.9]} 21. a3 {[%clk 0:03:24.4]} 21... b5 {[%clk 0:02:20.4]} 22.
Rab1 {[%clk 0:03:20.6]} 22... Rb8 {[%clk 0:02:05.5]} 23. h3 {[%clk 0:03:11.6]}
23... Bb3 {[%clk 0:01:46.2]} 24. Nh2 {[%clk 0:02:38.1]} 24... Rbc8 {[%clk
0:01:41.4]} 25. Bf3 {[%clk 0:02:35.1]} 25... Qe6 {[%clk 0:01:22]} 26. Qa5 {[%clk
0:02:16.4]} 26... Bc4 {[%clk 0:01:08.8]} 27. Qb6 {[%clk 0:02:04.2]} 27... Rb8
{[%clk 0:01:01.3]} 28. Qxe6 {[%clk 0:01:46]} 28... fxe6 {[%clk 0:01:00.1]} 29.
Bd1 {[%clk 0:01:35.7]} 29... Bd3 {[%clk 0:00:55]} 30. Rb2 {[%clk 0:01:29.5]}
30... Rbc8 {[%clk 0:00:45.7]} 31. Nf3 {[%clk 0:01:23]} 31... Rc7 {[%clk
0:00:38.2]} 32. Ne1 {[%clk 0:01:20.7]} 32... Bc4 {[%clk 0:00:34.4]} 33. Be2
{[%clk 0:01:12.5]} 33... Bxe2 {[%clk 0:00:25.4]} 34. Rxe2 {[%clk 0:01:09.1]}
34... Rb8 {[%clk 0:00:22.2]} 35. Rec2 {[%clk 0:00:55.6]} 35... b4 {[%clk
0:00:19.7]} 36. axb4 {[%clk 0:00:54.2]} 36... Rxb4 {[%clk 0:00:18.3]} 37. Nd3
{[%clk 0:00:51.9]} 37... Rb3 {[%clk 0:00:16.2]} 38. Ne1 {[%clk 0:00:32.9]} 38...
a3 {[%clk 0:00:14.9]} 39. Ra2 {[%clk 0:00:31]} 39... Ra7 {[%clk 0:00:12.1]} 40.
Nc2 {[%clk 0:00:20.8]} 40... Rb2 {[%clk 0:00:09]} 41. Rxa3 {[%clk 0:00:03.9]}
41... Rxc2 {[%clk 0:00:07.8]} 0-1